Workbook

Sheet Statistics Reporter
A1: Metadata Services Statistics Reporter July 1, 2015
A3: Cataloging Tasks
B4: FC, not CJK | C4: SC, not CJK | D4: EE, not CJK | E4: OD, not CJK | F4: SA | G4: CJK FC | H4: CJK SC | I4: CJK EE | J4: CJK OD
A5: Books, Maps, Graphics
A6: Audio
A7: Moving Image
A8: Notated Music
A9: Serials
A12: Authority Work Tasks | G12: Merging Tasks
B13: Not CJK | D13: CJK | G13: Monographs | I13: Serials
A14: NACO
B16: Your Raw Aggregate Number: | G16: =(100*((B5/'Standard Ranges'!B5)+((C5+D5+E5)/'Standard Ranges'!J5)+((F5+F6+F7+F8+F9)/('Standard Ranges'!B50))+(B6/'Standard Ranges'!B32)+((C6+D6+E6)/'Standard Ranges'!J32)+(B7/'Standard Ranges'!B14)+((C7+D7+E7)/'Standard Ranges'!J14)+(B8/'Standard Ranges'!B23)+((C8+D8+E8)/'Standard Ranges'!J23)+(B9/'Standard Ranges'!B41)+((C9+D9+E9)/'Standard Ranges'!J41)+(G5/'Standard Ranges'!R5)+((H5+I5+J5)/'Standard Ranges'!Z5)+(G6/'Standard Ranges'!R32)+((H6+I6+J6)/'Standard Ranges'!Z32)+(G7/'Standard Ranges'!R14)+((H7+I7+J7)/'Standard Ranges'!Z14)+(G8/'Standard Ranges'!R23)+(G9/'Standard Ranges'!R41)+((H8+I8+J8)/'Standard Ranges'!Z23)+((H9+I9+J9)/'Standard Ranges'!Z41)+(B14/'Standard Ranges'!B59)+(D14/'Standard Ranges'!J59)+(G14/'Standard Ranges'!R50)+(I14/'Standard Ranges'!Z50))) -> 0
A18: Adjustments to Your Aggregate Number
A19: Your percentage of time for your position: | E19: 100
A20: Percentage of time devoted to tasks other than cataloging: | E20: 0
A21: Number of Months Report Covers: | E21: 1
A22: Leave hours: | E22: 0
B24: Your Adjusted Aggregate Number: | G24: =((G16*(100/E19)*(100/(100-E20)))/E21)*((174*E21)/((174*E21)-E22)) -> 0
B26: Cataloging Task Abbreviations: FC: Fast Cataloging SC: Skimpy Copy EE: Extensive Editing OD: Original Description SA: Subject Analysis MR: Merged Record | E26: General Quantity Targets for Adjusted Aggregate Number: Satisfactory Performance 100-108 Above Expectations: 109-117 Exceptional: 118 or more
A27: Note: These calculations are based on an annual average of 174 working hours per month. The raw number for working hours has been adjusted downward to accommodate for typical break times (10 hours/month), meetings (10 hours/month), consultation on cataloging issues (30 hours/month), and holiday leave (10 hours/month). The resulting 114 working hours/month was then used as a multiplier to come up with the standard ranges shown on the attached worksheet ("Standard Ranges").

Sheet Standard Ranges
B1: Book and Maps standard ranges (at 114 hours/month)
B3: FC | J3: EE/SC/OD | R3: CJK FC | Z3: CJK EE/SC/OD
B4: Items/Month | F4: Minutes/Item | J4: Items/Month | N4: Minutes/Item | R4: Items/Month | V4: Minutes/Item | Z4: Items/Month | AD4: Minutes/Item
A5: S | B5: =6*114 -> 684 | C5: to | D5: =B6-1 -> 745 | F5: =(114/B5)*60 -> 10 | G5: to | H5: =(114/D5)*60 -> 9.2 | J5: =(10/25)*B5 -> 274 | K5: to | L5: =J6-1 -> 297 | N5: =(114/J5)*60 -> 25 | O5: to | P5: =(114/L5)*60 -> 23.01294646 | R5: =B5/1.6 -> 428 | S5: to | T5: =R6-1 -> 465 | V5: =(114/R5)*60 -> 16.0 | X5: =(114/T5)*60 -> 14.7 | Z5: =J5/1.6 -> 171 | AB5: =Z6-1 -> 185 | AD5: =(114/Z5)*60 -> 40.0 | AF5: =(114/AB5)*60 -> 36.9
A6: A | B6: =1.09*B5 -> 746 | C6: to | D6: 806 | F6: =(114/B6)*60 -> 9.2 | G6: to | H6: 8.5 | J6: =1.09*J5 -> 298 | K6: to | L6: 322 | N6: =(114/J6)*60 -> 22.9 | O6: to | P6: 21.3 | R6: =1.09*R5 -> 466 | S6: to | T6: 503 | V6: =(114/R6)*60 -> 14.7 | X6: 13.6 | Z6: =1.09*Z5 -> 186 | AB6: 201 | AD6: =(114/Z6)*60 -> 36.7 | AF6: 34.1
A7: E | B7: =B5*1.18 -> 807 | C7: or more | F7: 8.5 | G7: or less | J7: =J5*1.18 -> 323 | K7: or more | N7: 21.2 | O7: or less | R7: =R5*1.18 -> 504 | S7: or more | V7: 13.6 | W7: or less | Z7: =Z5*1.18 -> 202 | AA7: or more | AD7: 33.9 | AE7: or less
B10: Moving image standard ranges (at 114 hours/month)
B12: FC | J12: EE/SC/OD | R12: CJK FC | Z12: CJK EE/SC/OD
B13: Items/Month | F13: Minutes/Item | J13: Items/Month | N13: Minutes/Item | R13: Items/Month | V13: Minutes/Item | Z13: Items/Month | AD13: Minutes/Item
A14: S | B14: =B16/1.18 -> 430 | C14: to | D14: =B15-1 -> 464 | F14: =(114/B14)*60 -> 15.9 | G14: to | H14: =(114/D14)*60 -> 14.7 | J14: =J15*B5/B6 -> 118 | L14: =J15-1 -> 128 | N14: =(114/J14)*60 -> 57.8 | P14: =(114/L14)*60 -> 53.4 | R14: =R16*R5/R7 -> 269 | S14: to | T14: =R15-1 -> 292 | V14: =(114/R14)*60 -> 25.5 | X14: =(114/T14)*60 -> 23.4 | Z14: =Z15*R5/R6 -> 74 | AB14: =Z15-1 -> 80 | AD14: =(114/Z14)*60 -> 92.5 | AF14: =(114/AB14)*60 -> 85.9
A15: A | B15: =B16/1.09 -> 465 | C15: to | D15: =B16-1 -> 506 | F15: =(114/B15)*60 -> 14.7 | G15: to | H15: 13.5 | J15: 129 | L15: 139 | N15: 53.0 | P15: 49.3 | R15: =R16*R6/R7 -> 293 | S15: to | T15: =R16-1 -> 316 | V15: 23.4 | X15: 21.6 | Z15: =J15/1.6 -> 81 | AB15: 86 | AD15: 84.8 | AF15: 79.3
A16: E | B16: =516*(114/116) -> 507 | C16: or more | F16: 13.5 | G16: or less | J16: =J15*(J7/J6) -> 140 | K16: or more | N16: 49.0 | O16: or less | R16: =B16/1.6 -> 317 | S16: or more | V16: 21.6 | W16: or less | Z16: =Z15*(Z7/Z6) -> 87 | AA16: or more | AD16: 78.4 | AE16: or less
B19: Notated music standard ranges (at 114 hours/month)
B21: FC | J21: EE/SC/OD | R21: CJK FC | Z21: CJK EE/SC/OD
B22: Items/Month | F22: Minutes/Item | J22: Items/Month | N22: Minutes/Item | R22: Items/Month | V22: Minutes/Item | Z22: Items/Month | AD22: Minutes/Item
A23: S | B23: =B24/1.09 -> 442 | C23: to | D23: =B24-1 -> 481 | F23: =(114/B23)*60 -> 15.5 | G23: to | H23: =(114/D23)*60 -> 14.2 | J23: =J24*(J5/J6) -> 163 | L23: =J24-1 -> 177 | N23: =(114/J23)*60 -> 41.9 | P23: =(114/L23)*60 -> 38.6 | R23: =R24*R5/R6 -> 276 | S23: to | T23: =R24-1 -> 300 | V23: =(114/R23)*60 -> 24.8 | X23: =(114/T23)*60 -> 22.8 | Z23: =Z24*(Z5/Z6) -> 102 | AB23: =Z24-1 -> 110 | AD23: =(114/Z23)*60 -> 67.0 | AF23: =(114/AB23)*60 -> 62.0
A24: A | B24: =490*(114/116) -> 482 | C24: to | D24: =B25-1 -> 520 | F24: 14.2 | G24: to | H24: 13.1 | J24: 178 | L24: =J25-1 -> 192 | N24: 38.4 | P24: 35.7 | R24: =B24/1.6 -> 301 | S24: to | T24: =R25-1 -> 325 | V24: 22.7 | X24: 21.1 | Z24: =J24/1.6 -> 111 | AB24: =Z25-1 -> 119 | AD24: 61.5 | AF24: 57.3
A25: E | B25: =B23*1.18 -> 521 | C25: or more | F25: 13.1 | G25: or less | J25: =J24*(J7/J6) -> 193 | K25: or more | N25: 35.5 | O25: or less | R25: =R24*(R7/R6) -> 326 | S25: or more | V25: 21.0 | W25: or less | Z25: =Z24*(Z7/Z6) -> 120 | AA25: or more | AD25: 56.8 | AE25: or less
B28: Audio recording standard ranges (at 114 hours/month)
B30: FC | J30: EE/SC/OD | R30: CJK FC | Z30: CJK EE/SC/OD
B31: Items/Month | F31: Minutes/Item | J31: Items/Month | N31: Minutes/Item | R31: Items/Month | V31: Minutes/Item | Z31: Items/Month | AD31: Minutes/Item
A32: S | B32: =B34/1.18 -> 590 | C32: to | D32: =B33-1 -> 642 | F32: =(114/B32)*60 -> 11.6 | G32: to | H32: =(114/D32)*60 -> 10.7 | J32: 129 | L32: =J33-1 -> 140 | N32: =(114/J32)*60 -> 53.0 | P32: =(114/L32)*60 -> 49.0 | R32: =R34*(R5/R7) -> 369 | S32: to | T32: =R33-1 -> 401 | V32: =(114/R32)*60 -> 18.6 | X32: =(114/T32)*60 -> 17.1 | Z32: =J32/1.6 -> 81 | AB32: =Z33-1 -> 87 | AD32: =(114/Z32)*60 -> 84.8 | AF32: =(114/AB32)*60 -> 78.7
A33: A | B33: =B32*1.09 -> 643 | C33: to | D33: =B34-1 -> 695 | F33: 10.6 | G33: to | H33: 9.8 | J33: =J32*(J6/J5) -> 141 | L33: =J34-1 -> 151 | N33: 48.6 | P33: 45.2 | R33: =R34*(R6/R7) -> 402 | S33: to | T33: =R34-1 -> 434 | V33: 17.0 | X33: 15.8 | Z33: =Z32*(Z6/Z5) -> 88 | AB33: =Z34-1 -> 94 | AD33: 77.8 | AF33: 72.7
A34: E | B34: =708*(114/116) -> 696 | C34: or more | F34: 9.8 | G34: or less | J34: =J32*J7/J5 -> 152 | K34: or more | N34: 44.9 | O34: or less | R34: =B34/1.6 -> 435 | S34: or more | V34: 15.7 | W34: or less | Z34: =Z32*Z7/Z5 -> 95 | AA34: or more | AD34: 71.9 | AE34: or less
B37: Serials standard ranges (at 114 hours/month)
B39: FC | J39: EE/SC/OD | R39: CJK FC | Z39: CJK EE/SC/OD
B40: Items/Month | F40: Minutes/Item | J40: Items/Month | N40: Minutes/Item | R40: Items/Month | V40: Minutes/Item | Z40: Items/Month | AD40: Minutes/Item
A41: S | B41: =B5 -> 684 | C41: to | D41: =B42-1 -> 745 | F41: =(114/B41)*60 -> 10.0 | G41: to | H41: =(114/D41)*60 -> 9.2 | J41: =J5/1.35 -> 203 | L41: =J42-1 -> 220 | N41: =(114/J41)*60 -> 33.8 | P41: =(114/L41)*60 -> 31.1 | R41: =R43*(R14/R16) -> 428 | S41: to | T41: =R42-1 -> 465 | V41: =(114/R41)*60 -> 16.0 | X41: =(114/T41)*60 -> 14.7 | Z41: =J41/1.6 -> 127 | AB41: =Z42-1 -> 137 | AD41: =(114/Z41)*60 -> 54.0 | AF41: =(114/AB41)*60 -> 49.9
A42: A | B42: =B41*1.09 -> 746 | C42: to | D42: =B43-1 -> 806 | F42: 9.2 | G42: to | H42: 8.5 | J42: =J41*(J15/J14) -> 221 | L42: =J43-1 -> 238 | N42: 31.0 | P42: 28.7 | R42: =R43*(R15/R16) -> 466 | S42: to | T42: =R43-1 -> 503 | V42: 14.7 | X42: 13.6 | Z42: =Z41*(Z15/Z14) -> 138 | AB42: =Z43-1 -> 148 | AD42: 49.5 | AF42: 46.1
A43: E | B43: =B41*1.18 -> 807 | C43: or more | F43: 8.5 | G43: or less | J43: =J41*J16/J14 -> 239 | K43: or more | N43: 28.6 | O43: or less | R43: =B43/1.6 -> 504 | S43: or more | V43: 13.6 | W43: or less | Z43: =Z41*Z16/Z14 -> 149 | AA43: or more | AD43: 45.8 | AE43: or less
B46: Subject Analysis | R46: Merging
B48: All Materials | R48: Textual Monographs | Z48: Serials
B49: Items/Month | F49: Minutes/Item | R49: Items/Month | V49: Minutes/Item | Z49: Items/Month | AD49: Minutes/Item
A50: S | B50: =114*(60/25) -> 274 | C50: to | D50: =B51-1 -> 297 | F50: =(114/B50)*60 -> 25.0 | G50: to | H50: =(114/D50)*60 -> 23.0 | R50: =R52/1.18 -> 3917 | S50: to | T50: =R51-1 -> 4239 | V50: =(114/R50)*60 -> 1.7 | X50: =(114/T50)*60 -> 1.6 | Z50: =Z52/1.18 -> 2425 | AB50: =Z51-1 -> 2625 | AD50: =(114/Z50)*60 -> 2.8 | AF50: =(114/AB50)*60 -> 2.6
A51: A | B51: =B50*1.09 -> 298 | C51: to | D51: =B52-1 -> 322 | F51: 22.9 | G51: to | H51: 21.3 | R51: =R52/1.09 -> 4240 | S51: to | T51: =R52-1 -> 4621 | V51: 1.6 | X51: 1.5 | Z51: =Z52/1.09 -> 2626 | AB51: =Z52-1 -> 2861 | AD51: 2.6 | AF51: 2.4
A52: E | B52: =B50*1.18 -> 323 | C52: or more | F52: 21.2 | G52: or less | R52: 4622 | S52: or more | V52: 1.5 | W52: or less | Z52: 2862 | AA52: or more | AD52: 2.4 | AE52: or less
B55: NACO
B57: Not CJK | J57: CJK
B58: Items/Month | F58: Minutes/Item | J58: Items/Month | N58: Minutes/Item
A59: S | B59: =114*(60/20) -> 342 | C59: to | D59: =B60-1 -> 372 | F59: =(114/B59)*60 -> 20.0 | G59: to | H59: =(114/D59)*60 -> 18.4 | J59: =B59/1.6 -> 214 | L59: =J60-1 -> 232 | N59: =(114/J59)*60 -> 32.0 | P59: =(114/L59)*60 -> 29.5
A60: A | B60: =B59*1.09 -> 373 | C60: to | D60: =B61-1 -> 403 | F60: 18.3 | G60: to | H60: 17.0 | J60: =B60/1.6 -> 233 | L60: =J61-1 -> 251 | N60: 29.4 | P60: 27.2
A61: E | B61: =B59*1.18 -> 404 | C61: or more | F61: 16.9 | G61: or less | J61: =B61/1.6 -> 252 | K61: or more | N61: 27.1 | O61: or less
